[Event "WYCC 2018 G16"]
[Site "Halkidiki"]
[Date "2018.10.28"]
[Round "9"]
[White "Gombocz, Zsofia"]
[Black "Sanabria Taskila, Jenny Maria"]
[Result "0-1"]
[ECO "B51"]
[WhiteElo "2038"]
[BlackElo "1728"]
[Annotator "NA"]
[PlyCount "140"]
[EventDate "2018.10.20"]
[EventType "swiss"]
[EventCountry "GRE"]
[SourceTitle "playchess.com"]
[Source "ChessBase"]
[SourceQuality "1"]
[TimeControl "40/5400+30:1800+30"]

1. e4 {[%emt 0:00:00]} c5 {[%emt 0:00:00]} 2. Nf3 {[%emt 0:00:00]} d6 {[%emt 0:00:00]} 3. Bb5+ {[%emt 0:00:00]} Nd7 {[%emt 0:00:00]} 4. d4 {[%emt 0:00:00]} Ngf6 {[%emt 0:00:00]} 5. Nc3 {[%emt 0:00:02]} cxd4 {[%emt 0:00:05]} 6. Qxd4 {[%emt 0:00:15]} e5 {[%emt 0:00:22]} 7. Qd3 {[%emt 0:00:59]} a6 {[%emt 0:00:39]} 8. Bxd7+ {[%emt 0:02:17]} Bxd7 {[%emt 0:03:07]} 9. a4 {[%emt 0:05:28]} h6 {[%emt 0:08:26]} 10. O-O {[%emt 0:05:09]} Bc6 {[%emt 0:02:20]} 11. Nh4 {[%emt 0:07:12]} Nxe4 {[%emt 0:21:42]} 12. Nxe4 {[%emt 0:18:21]} d5 {[%emt 0:01:18]} 13. Qg3 {[%emt 0:04:01]} dxe4 {[%emt 0:05:09]} 14. Qxe5+ {[%emt 0:01:40]} Qe7 {[%emt 0:00:46]} 15. Bf4 {[%emt 0:03:14]} Rd8 {[%emt 0:06:02]} 16. Qxe7+ {[%emt 0:16:35]} Bxe7 {[%emt 0:01:24]} 17. Nf5 {[%emt 0:00:12]} Bf6 {[%emt 0:02:26]} 18. c3 {[%emt 0:07:08]} O-O {[%emt 0:02:03]} 19. Rfe1 {[%emt 0:02:10]} Rfe8 {[%emt 0:03:56]} 20. h3 {[%emt 0:02:01]} Re6 {[%emt 0:03:52]} 21. a5 {[%emt 0:07:19]} Rd5 {[%emt 0:01:50]} 22. Ne3 {[%emt 0:02:27]} Rb5 {[%emt 0:02:27]} 23. Re2 {[%emt 0:00:50]} Re7 {[%emt 0:04:26]} 24. Bd6 {[%emt 0:02:36]} Rd7 {[%emt 0:01:36]} 25. Bb4 {[%emt 0:00:08]} Bd8 {[%emt 0:10:40]} 26. Nc2 {[%emt 0:03:18]} Bc7 {[%emt 0:00:55]} 27. Ne3 {[%emt 0:01:31]} f5 {[%emt 0:01:31]} 28. Nc4 {[%emt 0:02:56]} Rbd5 {[%emt 0:02:12]} 29. Ne3 {[%emt 0:01:34]} Rd3 {[%emt 0:00:31]} 30. Ree1 {[%emt 0:01:19]} g6 {[%emt 0:06:34]} 31. b3 {[%emt 0:02:20]} Kf7 {[%emt 0:02:21]} 32. Nc4 {[%emt 0:00:44]} Kf6 {[%emt 0:01:40]} 33. Ne3 {[%emt 0:00:51]} f4 {[%emt 0:03:35]} 34. Nc4 {[%emt 0:01:18]} Kf5 {[%emt 0:01:03]} 35. Rac1 {[%emt 0:00:42]} g5 {[%emt 0:01:01]} 36. Rc2 {[%emt 0:00:52]} h5 {[%emt 0:00:56]} 37. Nb6 {[%emt 0:00:13]} Rd8 {[%emt 0:00:51]} 38. Bc5 {[%emt 0:00:08]} Be5 {[%emt 0:00:30]} 39. Bb4 {[%emt 0:00:00]} g4 {[%emt 0:00:00]} 40. hxg4+ {[%emt 0:00:00]} hxg4 {[%emt 0:00:00]} 41. Nc4 {[%emt 0:03:59]} Bc7 {[%emt 0:04:09]} 42. Bc5 {[%emt 0:01:19]} g3 {[%emt 0:04:59]} 43. fxg3 {[%emt 0:03:08]} Rxg3 {[%emt 0:00:55]} 44. Rf1 {[%emt 0:02:58]} Kg6 {[%emt 0:07:52]} 45. Bb6 {[%emt 0:01:47]} Bxb6+ {[%emt 0:00:08]} 46. axb6 {[%emt 0:00:11]} Kg5 {[%emt 0:03:31]} 47. Ne5 {[%emt 0:00:57]} Be8 {[%emt 0:02:24]} 48. Kh2 {[%emt 0:02:18]} Rd6 {[%emt 0:01:29]} 49. Re1 {[%emt 0:02:13]} Kf5 {[%emt 0:02:43]} 50. Nc4 {[%emt 0:01:37]} Rdd3 {[%emt 0:01:59]} 51. Rce2 {[%emt 0:02:02]} Bc6 {[%emt 0:02:33]} 52. Na5 {[%emt 0:01:40]} Rxc3 {[%emt 0:00:16]} 53. Nxc6 {[%emt 0:00:23]} Rxc6 {[%emt 0:00:04]} 54. Rxe4 {[%emt 0:00:09]} Rxb3 {[%emt 0:01:13]} 55. Re5+ {[%emt 0:00:44]} Kg4 {[%emt 0:01:40]} 56. Re7 {[%emt 0:03:08]} Rcxb6 {[%emt 0:01:07]} 57. Rg7+ {[%emt 0:00:31]} Kf5 {[%emt 0:00:28]} 58. Ree7 {[%emt 0:00:13]} Rh6+ {[%emt 0:00:54]} 59. Kg1 {[%emt 0:00:07]} b5 {[%emt 0:00:35]} 60. Rc7 {[%emt 0:01:01]} Re6 {[%emt 0:01:39]} 61. Rgf7+ {[%emt 0:01:10]} Ke4 {[%emt 0:00:08]} 62. Rc1 {[%emt 0:00:33]} a5 {[%emt 0:01:17]} 63. Rf1 {[%emt 0:00:10]} f3 {[%emt 0:00:33]} 64. gxf3+ {[%emt 0:00:21]} Kd4 {[%emt 0:00:33]} 65. Rf5 {[%emt 0:01:35]} a4 {[%emt 0:00:30]} 66. Rd1+ {[%emt 0:00:40]} Kc4 {[%emt 0:00:22]} 67. Rc1+ {[%emt 0:00:53]} Kb4 {[%emt 0:00:37]} 68. Rf4+ {[%emt 0:00:53]} Ka5 {[%emt 0:00:30]} 69. Rf8 {[%emt 0:00:45]} a3 {[%emt 0:00:25]} 70. f4 {[%emt 0:00:09]} a2 {[%emt 0:00:36]} 0-1

[Event "WYCC 2018 G16"]
[Site "Halkidiki"]
[Date "2018.10.28"]
[Round "9"]
[White "Sosa Suarez, Carla Cristina"]
[Black "Zhang, Cindy"]
[Result "0-1"]
[ECO "C07"]
[WhiteElo "2025"]
[BlackElo "1790"]
[Annotator "NA"]
[PlyCount "137"]
[EventDate "2018.10.20"]
[EventType "swiss"]
[EventCountry "GRE"]
[SourceTitle "playchess.com"]
[Source "ChessBase"]
[SourceQuality "1"]
[TimeControl "40/5400+30:1800+30"]

1. e4 {[%emt 0:00:00]} e6 {[%emt 0:00:00]} 2. d4 {[%emt 0:00:00]} d5 {[%emt 0:00:00]} 3. Nd2 {[%emt 0:00:00]} c5 {[%emt 0:00:00]} 4. Ngf3 {[%emt 0:00:35]} cxd4 {[%emt 0:00:15]} 5. exd5 {[%emt 0:00:47]} Qxd5 {[%emt 0:00:15]} 6. Bc4 {[%emt 0:00:51]} Qd6 {[%emt 0:00:32]} 7. Qe2 {[%emt 0:02:04]} Nf6 {[%emt 0:01:01]} 8. Nb3 {[%emt 0:01:44]} Nc6 {[%emt 0:01:58]} 9. O-O {[%emt 0:01:59]} Be7 {[%emt 0:05:45]} 10. Rd1 {[%emt 0:03:08]} O-O {[%emt 0:07:30]} 11. Nbxd4 {[%emt 0:04:29]} Rd8 {[%emt 0:04:29]} 12. Bg5 {[%emt 0:11:48]} Nxd4 {[%emt 0:22:45]} 13. Rxd4 {[%emt 0:03:19]} Qc7 {[%emt 0:01:00]} 14. Bf4 {[%emt 0:04:27]} Qc5 {[%emt 0:03:26]} 15. Rxd8+ {[%emt 0:04:43]} Bxd8 {[%emt 0:00:09]} 16. Rd1 {[%emt 0:02:06]} Be7 {[%emt 0:04:47]} 17. Ne5 {[%emt 0:04:01]} a6 {[%emt 0:06:40]} 18. a4 {[%emt 0:02:30]} b6 {[%emt 0:08:59]} 19. Qf3 {[%emt 0:06:19]} Ra7 {[%emt 0:00:30]} 20. Nc6 {[%emt 0:06:01]} Bb7 {[%emt 0:03:09]} 21. Nxe7+ {[%emt 0:02:01]} Qxe7 {[%emt 0:00:08]} 22. Qe3 {[%emt 0:09:45]} Nd5 {[%emt 0:06:38]} 23. Qe5 {[%emt 0:02:05]} Qf8 {[%emt 0:03:05]} 24. Be3 {[%emt 0:02:53]} Qc8 {[%emt 0:03:32]} 25. Bb3 {[%emt 0:03:49]} Ra8 {[%emt 0:01:09]} 26. Bd4 {[%emt 0:01:39]} Nf6 {[%emt 0:02:14]} 27. Qg5 {[%emt 0:01:51]} h6 {[%emt 0:02:16]} 28. Qg3 {[%emt 0:01:02]} Qd8 {[%emt 0:03:19]} 29. c3 {[%emt 0:01:00]} Nh5 {[%emt 0:00:46]} 30. Qe5 {[%emt 0:01:39]} Nf6 {[%emt 0:00:37]} 31. Be3 {[%emt 0:02:03]} Qe7 {[%emt 0:00:54]} 32. Bxb6 {[%emt 0:01:26]} Bxg2 {[%emt 0:01:44]} 33. Qc7 {[%emt 0:04:21]} Qxc7 {[%emt 0:00:33]} 34. Bxc7 {[%emt 0:00:05]} Bf3 {[%emt 0:00:58]} 35. Rd8+ {[%emt 0:01:57]} Rxd8 {[%emt 0:01:13]} 36. Bxd8 {[%emt 0:00:04]} Nd7 {[%emt 0:02:22]} 37. Bc4 {[%emt 0:01:14]} Nc5 {[%emt 0:00:44]} 38. b3 {[%emt 0:04:04]} Bb7 {[%emt 0:02:31]} 39. Bb6 {[%emt 0:01:26]} Ne4 {[%emt 0:00:30]} 40. Kf1 {[%emt 0:00:00]} Nxc3 {[%emt 0:00:00]} 41. Bd4 {[%emt 0:06:05]} Ne4 {[%emt 0:02:53]} 42. Ke2 {[%emt 0:00:56]} g6 {[%emt 0:04:41]} 43. Be3 {[%emt 0:01:12]} h5 {[%emt 0:03:34]} 44. Kd3 {[%emt 0:00:59]} Nd6 {[%emt 0:01:06]} 45. Bc5 {[%emt 0:02:31]} Nxc4 {[%emt 0:00:56]} 46. Kxc4 {[%emt 0:01:56]} Bd5+ {[%emt 0:01:07]} 47. Kc3 {[%emt 0:00:04]} f6 {[%emt 0:00:45]} 48. b4 {[%emt 0:01:34]} Bc6 {[%emt 0:00:33]} 49. a5 {[%emt 0:01:26]} e5 {[%emt 0:01:04]} 50. Kc4 {[%emt 0:01:22]} Kf7 {[%emt 0:00:10]} 51. Be3 {[%emt 0:00:32]} g5 {[%emt 0:01:23]} 52. Kc5 {[%emt 0:00:19]} Bb5 {[%emt 0:00:24]} 53. Kd5 {[%emt 0:00:15]} Kg6 {[%emt 0:00:26]} 54. Bc5 {[%emt 0:01:43]} Bd3 {[%emt 0:01:28]} 55. Be7 {[%emt 0:00:41]} Kf5 {[%emt 0:00:58]} 56. Bd8 {[%emt 0:01:06]} g4 {[%emt 0:00:57]} 57. Be7 {[%emt 0:00:19]} h4 {[%emt 0:02:22]} 58. Bd8 {[%emt 0:00:46]} Kg6 {[%emt 0:03:02]} 59. Be7 {[%emt 0:01:05]} Bb5 {[%emt 0:03:15]} 60. Bd8 {[%emt 0:00:48]} Kf7 {[%emt 0:00:52]} 61. Kd6 {[%emt 0:00:36]} Bc4 {[%emt 0:01:47]} 62. Kc5 {[%emt 0:00:57]} Be2 {[%emt 0:00:31]} 63. Kd6 {[%emt 0:00:09]} Kg6 {[%emt 0:03:21]} 64. Be7 {[%emt 0:01:08]} e4 {[%emt 0:02:38]} 65. Kd5 {[%emt 0:00:27]} e3 {[%emt 0:00:44]} 66. fxe3 {[%emt 0:00:43]} g3 {[%emt 0:00:36]} 67. hxg3 {[%emt 0:00:04]} h3 {[%emt 0:00:10]} 68. g4 {[%emt 0:01:01]} h2 {[%emt 0:00:06]} 69. Kd4 0-1

[Event "WYCC 2018 G16"]
[Site "Halkidiki"]
[Date "2018.10.28"]
[Round "9"]
[White "Hercog, Nusa"]
[Black "Puppi Lazo, Stephanie Beatriz"]
[Result "0-1"]
[ECO "E12"]
[WhiteElo "2017"]
[BlackElo "1847"]
[Annotator "NA RC"]
[PlyCount "62"]
[EventDate "2018.10.20"]
[EventType "swiss"]
[EventCountry "GRE"]
[SourceTitle "playchess.com"]
[Source "ChessBase"]
[SourceQuality "1"]
[TimeControl "40/5400+30:1800+30"]

1. d4 {[%emt 0:00:00]} Nf6 {[%emt 0:00:00]} 2. c4 {[%emt 0:00:00]} e6 {[%emt 0:00:00]} 3. Nf3 {[%emt 0:00:00]} b6 {[%emt 0:00:00]} 4. a3 {[%emt 0:00:00]} c5 {[%emt 0:00:00]} 5. d5 {[%emt 0:00:37]} Ba6 {[%emt 0:00:00]} 6. Qc2 {[%emt 0:00:35]} exd5 {[%emt 0:00:00]} 7. cxd5 {[%emt 0:00:06]} g6 {[%emt 0:00:05]} 8. Nc3 {[%emt 0:01:04]} Bg7 {[%emt 0:00:05]} 9. e4 {[%emt 0:08:07]} Bxf1 {[%emt 0:00:13]} 10. Kxf1 {[%emt 0:00:06]} d6 {[%emt 0:00:11]} 11. g3 {[%emt 0:00:39]} O-O {[%emt 0:00:25]} 12. Kg2 {[%emt 0:00:29]} Nbd7 {[%emt 0:02:32]} 13. Re1 {[%emt 0:05:05]} Re8 {[%emt 0:01:25]} 14. Nd2 {[%emt 0:10:13]} a6 {[%emt 0:06:12]} 15. a4 {[%emt 0:01:20]} Qc7 {[%emt 0:14:58]} 16. b3 {[%emt 0:03:45]} Rab8 {[%emt 0:05:56]} 17. Qd3 {[%emt 0:12:48]} Ng4 {[%emt 0:11:25]} 18. h3 {[%emt 0:07:29]} Nge5 {[%emt 0:01:57]} 19. Qc2 {[%emt 0:16:08]} c4 {[%emt 0:03:46]} 20. Re3 {[%emt 0:02:43]} b5 {[%emt 0:03:10]} 21. axb5 {[%emt 0:02:58]} axb5 {[%emt 0:00:48]} 22. Rb1 {[%emt 0:02:32]} Rec8 {[%emt 0:06:17]} 23. b4 {[%emt 0:01:56]} Nd3 {[%emt 0:00:54]} 24. f4 {[%emt 0:01:36]} Nxb4 {[%emt 0:06:55]} 25. Qd1 {[%emt 0:05:58]} Nd3 {[%emt 0:00:57]} 26. Qc2 {[%emt 0:07:54]} Qc5 {[%emt 0:02:24]} 27. Re2 {[%emt 0:00:39]} b4 {[%emt 0:02:33]} 28. Na4 {[%emt 0:01:19]} Qb5 {[%emt 0:00:16]} 29. Nb2 {[%emt 0:05:34]} Nxb2 {[%emt 0:00:23]} 30. Bxb2 {[%emt 0:00:05]} c3 {[%emt 0:00:03]} 31. Nf1 {[%emt 0:00:44]} cxb2 {[%emt 0:00:12]} 0-1

[Event "WYCC 2018 G16"]
[Site "Halkidiki"]
[Date "2018.10.28"]
[Round "9"]
[White "Bogdanic, Katarina"]
[Black "Leonova, Ameliya"]
[Result "1-0"]
[ECO "A10"]
[WhiteElo "2014"]
[BlackElo "1736"]
[Annotator "NA RC"]
[PlyCount "57"]
[EventDate "2018.10.20"]
[EventType "swiss"]
[EventCountry "GRE"]
[SourceTitle "playchess.com"]
[Source "ChessBase"]
[SourceQuality "1"]
[TimeControl "40/5400+30:1800+30"]

1. c4 {[%emt 0:00:00]} f5 {[%emt 0:00:00]} 2. Nf3 {[%emt 0:00:00]} Nf6 {[%emt 0:00:00]} 3. g3 {[%emt 0:00:00]} g6 {[%emt 0:00:03]} 4. Bg2 {[%emt 0:00:00]} Bg7 {[%emt 0:00:05]} 5. Nc3 {[%emt 0:00:08]} O-O {[%emt 0:00:09]} 6. O-O {[%emt 0:00:15]} d6 {[%emt 0:00:30]} 7. d3 {[%emt 0:00:11]} e5 {[%emt 0:00:08]} 8. Rb1 {[%emt 0:00:38]} Nc6 {[%emt 0:01:02]} 9. b4 {[%emt 0:02:20]} h6 {[%emt 0:03:30]} 10. b5 {[%emt 0:00:38]} Ne7 {[%emt 0:00:07]} 11. a4 {[%emt 0:01:25]} g5 {[%emt 0:00:57]} 12. Nd2 {[%emt 0:00:29]} Qe8 {[%emt 0:14:29]} 13. a5 {[%emt 0:03:46]} Rb8 {[%emt 0:02:32]} 14. b6 {[%emt 0:11:11]} axb6 {[%emt 0:00:18]} 15. axb6 {[%emt 0:01:18]} c6 {[%emt 0:00:11]} 16. Ba3 {[%emt 0:01:01]} c5 {[%emt 0:40:10]} 17. Nb5 {[%emt 0:01:25]} Qh5 {[%emt 0:03:27]} 18. Nxd6 {[%emt 0:11:57]} Be6 {[%emt 0:04:20]} 19. e4 {[%emt 0:04:47]} Ng4 {[%emt 0:00:53]} 20. h3 {[%emt 0:00:34]} f4 {[%emt 0:01:51]} 21. Nf5 {[%emt 0:03:15]} Bxf5 {[%emt 0:11:17]} 22. exf5 {[%emt 0:00:04]} fxg3 {[%emt 0:01:51]} 23. Qxg4 {[%emt 0:01:02]} gxf2+ {[%emt 0:00:57]} 24. Rxf2 {[%emt 0:00:05]} Qf7 {[%emt 0:02:34]} 25. Bxc5 {[%emt 0:00:29]} Kh8 {[%emt 0:02:07]} 26. Ne4 {[%emt 0:01:36]} Bf6 {[%emt 0:01:12]} 27. Nxf6 {[%emt 0:02:21]} Qxf6 {[%emt 0:00:09]} 28. Re1 {[%emt 0:00:56]} Rf7 {[%emt 0:00:25]} 29. d4 {[%emt 0:00:21]} 1-0

[Event "WYCC 2018 G16"]
[Site "Halkidiki"]
[Date "2018.10.28"]
[Round "9"]
[White "Duson, Robin"]
[Black "Plaza Reino, Mercedes"]
[Result "1-0"]
[ECO "D35"]
[WhiteElo "1999"]
[BlackElo "1727"]
[Annotator "NA"]
[PlyCount "83"]
[EventDate "2018.10.20"]
[EventType "swiss"]
[EventCountry "GRE"]
[SourceTitle "playchess.com"]
[Source "ChessBase"]
[SourceQuality "1"]
[TimeControl "40/5400+30:1800+30"]

1. d4 {[%emt 0:00:00]} d5 {[%emt 0:00:00]} 2. c4 {[%emt 0:00:00]} e6 {[%emt 0:00:00]} 3. Nc3 {[%emt 0:00:00]} Nf6 {[%emt 0:00:00]} 4. cxd5 {[%emt 0:00:03]} exd5 {[%emt 0:00:00]} 5. Bg5 {[%emt 0:00:07]} Be7 {[%emt 0:00:00]} 6. e3 {[%emt 0:00:07]} c6 {[%emt 0:00:34]} 7. Bd3 {[%emt 0:00:10]} h6 {[%emt 0:00:11]} 8. Bh4 {[%emt 0:00:14]} O-O {[%emt 0:00:12]} 9. Qc2 {[%emt 0:00:34]} Nbd7 {[%emt 0:00:11]} 10. Nf3 {[%emt 0:00:09]} Re8 {[%emt 0:00:13]} 11. Bg3 {[%emt 0:00:08]} Nf8 {[%emt 0:01:23]} 12. h3 {[%emt 0:00:26]} Bd6 {[%emt 0:01:29]} 13. Bxd6 {[%emt 0:00:09]} Qxd6 {[%emt 0:00:02]} 14. O-O {[%emt 0:00:10]} b6 {[%emt 0:01:38]} 15. Ne5 {[%emt 0:00:37]} Bb7 {[%emt 0:02:55]} 16. f4 {[%emt 0:01:27]} Rac8 {[%emt 0:03:16]} 17. g4 {[%emt 0:07:53]} c5 {[%emt 0:07:19]} 18. Qf2 {[%emt 0:04:05]} Ne4 {[%emt 0:05:45]} 19. Bxe4 {[%emt 0:03:07]} dxe4 {[%emt 0:00:34]} 20. Rad1 {[%emt 0:01:47]} cxd4 {[%emt 0:21:39]} 21. Rxd4 {[%emt 0:01:42]} Qe7 {[%emt 0:01:49]} 22. Rfd1 {[%emt 0:03:23]} Rcd8 {[%emt 0:10:13]} 23. Nb5 {[%emt 0:13:43]} Rxd4 {[%emt 0:09:09]} 24. Rxd4 {[%emt 0:00:41]} f6 {[%emt 0:09:32]} 25. Nc4 {[%emt 0:04:11]} Ne6 {[%emt 0:03:24]} 26. Rd2 {[%emt 0:03:58]} Bc6 {[%emt 0:05:57]} 27. Nbd6 {[%emt 0:08:37]} Rd8 {[%emt 0:00:25]} 28. Nf5 {[%emt 0:02:37]} Qc7 {[%emt 0:02:26]} 29. Ncd6 {[%emt 0:03:58]} Nc5 {[%emt 0:01:45]} 30. Rd4 {[%emt 0:02:05]} Kh7 {[%emt 0:04:50]} 31. Qh4 {[%emt 0:07:05]} Rd7 {[%emt 0:00:58]} 32. g5 {[%emt 0:03:04]} fxg5 {[%emt 0:00:39]} 33. fxg5 {[%emt 0:00:07]} Ne6 {[%emt 0:05:35]} 34. Ne8 {[%emt 0:04:18]} Qc8 {[%emt 0:02:12]} 35. gxh6 {[%emt 0:02:37]} g6 {[%emt 0:00:28]} 36. Nf6+ {[%emt 0:08:58]} Kh8 {[%emt 0:00:04]} 37. Nxd7 {[%emt 0:00:52]} Bxd7 {[%emt 0:00:18]} 38. Qf6+ {[%emt 0:00:41]} Kh7 {[%emt 0:00:31]} 39. Qe7+ {[%emt 0:00:32]} Kh8 {[%emt 0:00:40]} 40. Qxd7 {[%emt 0:00:00]} Qxd7 {[%emt 0:00:00]} 41. Rxd7 {[%emt 0:00:32]} gxf5 {[%emt 0:00:53]} 42. Rxa7 {[%emt 0:00:59]} 1-0

[Event "WYCC 2018 G16"]
[Site "Halkidiki"]
[Date "2018.10.28"]
[Round "9"]
[White "Djidjeli, Sarah"]
[Black "Sabiani, Chjara"]
[Result "1-0"]
[ECO "B30"]
[WhiteElo "1952"]
[BlackElo "1778"]
[Annotator "NA RC"]
[PlyCount "61"]
[EventDate "2018.10.20"]
[EventType "swiss"]
[EventCountry "GRE"]
[SourceTitle "playchess.com"]
[Source "ChessBase"]
[SourceQuality "1"]
[TimeControl "40/5400+30:1800+30"]

1. e4 {[%emt 0:00:00]} c5 {[%emt 0:00:00]} 2. Nf3 {[%emt 0:00:00]} Nc6 {[%emt 0:00:00]} 3. Bb5 {[%emt 0:00:00]} d6 {[%emt 0:00:00]} 4. O-O {[%emt 0:00:00]} g6 {[%emt 0:00:39]} 5. Re1 {[%emt 0:02:48]} Bg7 {[%emt 0:00:59]} 6. c3 {[%emt 0:02:52]} e5 {[%emt 0:09:15]} 7. d4 {[%emt 0:11:22]} Bd7 {[%emt 0:08:34]} 8. Be3 {[%emt 0:05:17]} Qe7 {[%emt 0:08:33]} 9. dxc5 dxc5 {[%emt 0:00:24]} 10. Qd5 {[%emt 0:26:00]} Nf6 {[%emt 0:07:53]} 11. Qxc5 Nxe4 {[%emt 0:01:48]} 12. Qd5 {[%emt 0:02:25]} f5 {[%emt 0:10:39]} 13. Nbd2 {[%emt 0:03:26]} Nf6 {[%emt 0:09:37]} 14. Qc4 {[%emt 0:00:56]} Ng4 {[%emt 0:10:23]} 15. Bc5 {[%emt 0:03:35]} Qf7 {[%emt 0:00:35]} 16. h3 {[%emt 0:06:00]} Nh6 17. Qa4 {[%emt 0:04:03]} Qd5 {[%emt 0:04:45]} 18. b4 {[%emt 0:02:39]} Nb8 {[%emt 0:03:31]} 19. Rad1 {[%emt 0:04:14]} Bxb5 {[%emt 0:00:43]} 20. Qxb5+ {[%emt 0:00:10]} Qc6 {[%emt 0:00:10]} 21. Qe2 {[%emt 0:03:29]} Nd7 {[%emt 0:01:07]} 22. Nc4 {[%emt 0:00:39]} O-O-O {[%emt 0:01:37]} 23. Be7 {[%emt 0:01:04]} Rde8 {[%emt 0:01:15]} 24. Nd6+ {[%emt 0:00:51]} Kb8 {[%emt 0:00:04]} 25. Nxe8 {[%emt 0:01:01]} Rxe8 {[%emt 0:00:07]} 26. b5 {[%emt 0:00:50]} Qe6 {[%emt 0:00:45]} 27. Bb4 {[%emt 0:00:41]} Nf7 {[%emt 0:00:39]} 28. Nd4 {[%emt 0:01:18]} Qb6 {[%emt 0:02:25]} 29. Nc6+ {[%emt 0:00:52]} Kc8 {[%emt 0:01:27]} 30. Qc4 {[%emt 0:01:07]} Nd8 {[%emt 0:01:08]} 31. Ne7+ {[%emt 0:00:22]} 1-0

[Event "WYCC 2018 G16"]
[Site "Halkidiki"]
[Date "2018.10.28"]
[Round "9"]
[White "Hajiyeva, Laman"]
[Black "Getman, Tatyana"]
[Result "1/2-1/2"]
[ECO "E49"]
[WhiteElo "1916"]
[BlackElo "2195"]
[Annotator "NA"]
[PlyCount "94"]
[EventDate "2018.10.20"]
[EventType "swiss"]
[EventCountry "GRE"]
[SourceTitle "playchess.com"]
[Source "ChessBase"]
[SourceQuality "1"]
[TimeControl "40/5400+30:1800+30"]

1. d4 {[%emt 0:00:00]} Nf6 {[%emt 0:00:00]} 2. c4 {[%emt 0:00:00]} e6 {[%emt 0:00:00]} 3. Nc3 {[%emt 0:00:00]} Bb4 {[%emt 0:00:00]} 4. e3 {[%emt 0:00:00]} O-O {[%emt 0:00:00]} 5. Bd3 {[%emt 0:00:00]} d5 {[%emt 0:00:00]} 6. a3 {[%emt 0:00:00]} Bxc3+ {[%emt 0:00:03]} 7. bxc3 {[%emt 0:00:00]} dxc4 {[%emt 0:00:09]} 8. Bxc4 {[%emt 0:00:04]} c5 {[%emt 0:00:08]} 9. Ne2 {[%emt 0:00:12]} Qc7 {[%emt 0:00:37]} 10. Ba2 {[%emt 0:00:24]} b6 {[%emt 0:08:17]} 11. O-O {[%emt 0:00:19]} Bb7 {[%emt 0:01:48]} 12. Ng3 {[%emt 0:02:03]} Rd8 {[%emt 0:05:23]} 13. Bb2 {[%emt 0:04:01]} Nbd7 {[%emt 0:07:49]} 14. Qe2 {[%emt 0:05:26]} Qc6 {[%emt 0:02:11]} 15. f3 {[%emt 0:03:05]} b5 {[%emt 0:04:10]} 16. Rfd1 {[%emt 0:08:59]} Nb6 {[%emt 0:06:03]} 17. Rac1 {[%emt 0:06:23]} Rac8 {[%emt 0:04:03]} 18. e4 {[%emt 0:07:31]} Na4 {[%emt 0:02:55]} 19. Bb1 {[%emt 0:17:18]} Nxb2 {[%emt 0:06:30]} 20. Qxb2 {[%emt 0:02:40]} cxd4 {[%emt 0:00:43]} 21. cxd4 {[%emt 0:02:10]} Qb6 {[%emt 0:00:23]} 22. Rxc8 {[%emt 0:01:29]} Rxc8 {[%emt 0:00:51]} 23. Kh1 {[%emt 0:02:17]} a5 {[%emt 0:12:26]} 24. Bd3 {[%emt 0:06:12]} Ba6 {[%emt 0:04:36]} 25. d5 {[%emt 0:08:17]} exd5 {[%emt 0:05:46]} 26. Nf5 {[%emt 0:00:35]} Rd8 {[%emt 0:07:17]} 27. exd5 {[%emt 0:06:27]} Kf8 {[%emt 0:07:47]} 28. d6 {[%emt 0:06:33]} Bc8 {[%emt 0:01:32]} 29. Qe5 {[%emt 0:03:21]} Bxf5 {[%emt 0:04:01]} 30. Qe7+ {[%emt 0:00:43]} Kg8 {[%emt 0:00:01]} 31. Bxf5 {[%emt 0:00:06]} b4 {[%emt 0:03:02]} 32. axb4 {[%emt 0:01:37]} axb4 {[%emt 0:00:02]} 33. Rc1 {[%emt 0:02:28]} Nd5 {[%emt 0:05:31]} 34. Qe5 {[%emt 0:04:06]} Qe3 {[%emt 0:00:29]} 35. Qxe3 {[%emt 0:02:07]} Nxe3 {[%emt 0:00:02]} 36. Be4 {[%emt 0:00:34]} Kf8 {[%emt 0:00:54]} 37. Kg1 {[%emt 0:00:26]} Rxd6 {[%emt 0:00:29]} 38. Rc8+ {[%emt 0:00:33]} Ke7 {[%emt 0:00:03]} 39. Kf2 {[%emt 0:00:02]} Nd1+ {[%emt 0:00:19]} 40. Ke1 {[%emt 0:00:00]} Nc3 {[%emt 0:00:00]} 41. Bc2 {[%emt 0:03:14]} Nd5 {[%emt 0:06:44]} 42. Bb3 {[%emt 0:04:59]} Kf6 {[%emt 0:06:49]} 43. Rc4 {[%emt 0:02:13]} Rd7 {[%emt 0:01:59]} 44. Rd4 {[%emt 0:01:31]} Ke5 {[%emt 0:01:28]} 45. Re4+ {[%emt 0:00:07]} Kd6 {[%emt 0:01:00]} 46. Bxd5 {[%emt 0:00:04]} Kxd5 {[%emt 0:00:15]} 47. Rxb4 {[%emt 0:00:03]} Ke5 {[%emt 0:00:50]} 1/2-1/2

[Event "WYCC 2018 G16"]
[Site "Halkidiki"]
[Date "2018.10.28"]
[Round "9"]
[White "Kobald, Jacqueline"]
[Black "Bania, Eleni"]
[Result "1/2-1/2"]
[ECO "C77"]
[WhiteElo "1911"]
[BlackElo "1454"]
[Annotator "NA"]
[PlyCount "85"]
[EventDate "2018.10.20"]
[EventType "swiss"]
[EventCountry "GRE"]
[SourceTitle "playchess.com"]
[Source "ChessBase"]
[SourceQuality "1"]
[TimeControl "40/5400+30:1800+30"]

1. e4 {[%emt 0:00:00]} e5 {[%emt 0:00:00]} 2. Nf3 {[%emt 0:00:00]} Nc6 {[%emt 0:00:00]} 3. Bb5 {[%emt 0:00:00]} a6 {[%emt 0:00:00]} 4. Ba4 {[%emt 0:00:00]} Nf6 {[%emt 0:00:00]} 5. Qe2 {[%emt 0:00:07]} b5 {[%emt 0:02:52]} 6. Bb3 {[%emt 0:00:07]} Bc5 {[%emt 0:02:20]} 7. O-O {[%emt 0:02:03]} O-O {[%emt 0:00:51]} 8. a4 {[%emt 0:01:32]} b4 {[%emt 0:08:00]} 9. d3 {[%emt 0:05:47]} d6 {[%emt 0:00:52]} 10. h3 {[%emt 0:02:50]} Rb8 {[%emt 0:07:54]} 11. Nbd2 {[%emt 0:04:15]} h6 {[%emt 0:03:41]} 12. Nc4 {[%emt 0:02:27]} Be6 {[%emt 0:05:24]} 13. Bd2 {[%emt 0:09:05]} Nd7 {[%emt 0:08:00]} 14. a5 {[%emt 0:10:51]} Ba7 {[%emt 0:04:27]} 15. Ba4 {[%emt 0:04:58]} Nd4 {[%emt 0:03:19]} 16. Nxd4 {[%emt 0:02:05]} Bxd4 {[%emt 0:00:21]} 17. c3 {[%emt 0:02:27]} bxc3 {[%emt 0:01:36]} 18. bxc3 {[%emt 0:00:07]} Ba7 {[%emt 0:00:50]} 19. Rab1 {[%emt 0:09:03]} Bxc4 {[%emt 0:05:54]} 20. dxc4 {[%emt 0:00:07]} Nc5 {[%emt 0:00:43]} 21. Bc2 {[%emt 0:09:15]} Qd7 {[%emt 0:02:16]} 22. Be3 {[%emt 0:02:26]} Qc6 {[%emt 0:03:34]} 23. Qg4 {[%emt 0:00:27]} Kh8 {[%emt 0:02:09]} 24. Kh2 {[%emt 0:01:28]} Ra8 {[%emt 0:06:26]} 25. f4 {[%emt 0:09:21]} Nd7 {[%emt 0:10:21]} 26. Bd2 {[%emt 0:05:10]} Rae8 {[%emt 0:04:55]} 27. f5 {[%emt 0:03:47]} Qxc4 {[%emt 0:05:36]} 28. f6 {[%emt 0:05:27]} Nxf6 {[%emt 0:04:44]} 29. Qh4 {[%emt 0:04:35]} Ng8 {[%emt 0:03:17]} 30. Bb3 {[%emt 0:00:59]} Qe2 {[%emt 0:01:18]} 31. Bxf7 {[%emt 0:01:27]} Qxd2 {[%emt 0:02:05]} 32. Bxe8 {[%emt 0:00:28]} Rxe8 {[%emt 0:00:54]} 33. Qh5 {[%emt 0:00:34]} Rc8 {[%emt 0:01:06]} 34. Rf7 {[%emt 0:00:59]} Qg5 {[%emt 0:00:30]} 35. Qxg5 {[%emt 0:00:48]} hxg5 {[%emt 0:00:07]} 36. Rb7 {[%emt 0:00:10]} Bb8 {[%emt 0:00:08]} 37. Rf5 {[%emt 0:01:02]} Nf6 {[%emt 0:00:28]} 38. Rf1 {[%emt 0:00:13]} Nd7 {[%emt 0:01:14]} 39. Rf5 {[%emt 0:01:06]} Nf6 {[%emt 0:00:25]} 40. Rf1 {[%emt 0:00:00]} Nd7 {[%emt 0:00:00]} 41. Rfb1 {[%emt 0:02:16]} Kh7 {[%emt 0:04:15]} 42. Kg3 {[%emt 0:07:22]} Rf8 {[%emt 0:00:45]} 43. R1b4 {[%emt 0:04:13]} 1/2-1/2